Cogmind - Beta 16 @@@ ROGUE MODE // 2025.12.04 @ 16:06:14 Player: FR-13D Result: Destroyed by G-73 Enforcer with Phase Gun Performance ------------- Evolutions (8) 4000 Regions Visited (22) 4400 Robots Destroyed (234) 1170 Value Destroyed (9795) 9795 Prototype IDs (48) 960 Alien Tech Used (0) 0 Bonus (4016) 4016 TOTAL SCORE: 24341 Bonus ------- High Alert Combat Kills 343 Follower Combat Kills 592 Entered Garrisons 800 Used RIF Installer 2000 Aligned with FarCom 300 Friendly Fire -19 Cogmind --------- Core Integrity 0/1450 Matter 184/300 Energy 99/100 System Corruption 14% Temperature Cool (9) Movement Core (50) Location -2/Research Parts ------- > --- POWER (3) -------- (None) > --- PROPULSION (6) --- (None) > --- UTILITY (11) ----- Improved Target Analyzer > --- WEAPON (3) ------- (None) > --- INVENTORY (5) ---- Improved Cloaking Device Field Recycling Unit (51) Peak State ------------ > --- POWER ------------ Light Fission Core Particle Reactor Quantum Reactor > --- PROPULSION ------- Medium Treads Medium Treads Biometal Leg Treaded Surge Exoskeleton Wheel > --- UTILITY ---------- Scrap Engine Huge Storage Unit Terrain Scan Processor Improved Melee Analysis Suite Improved Target Analyzer Advanced Transmission Jammer Heavy Armor Plating Relay Coupler [Grunt] Relay Coupler [Specialist] > --- WEAPON ----------- Power Maul Chainsword Carbide Saw > --- INVENTORY -------- Improved Thermal Generator Improved Heat Sink Advanced Heat Sink Advanced Heat Sink Seismic Detector Improved Targeting Computer Advanced Targeting Computer Improved Cloaking Device Improved Cloaking Device EM Disruption Field Improved Hacking Suite System Shield Authchip [R/Combat] Authchip [R/Combat] Relay Coupler [Swarmer] Relay Coupler [Swarmer] Relay Coupler [Behemoth] Field Recycling Unit Heavy Disruptor Cannon Heavy Machine Gun Railgun Micro-nuke Launcher Remote Datajack [Rating: 116] Favorites ----------- Power Improved Deuterium Engine Engine Improved Deuterium Engine Power Core Constructs Reactor Light Antimatter Reactor Propulsion Wheel Treads Constructs Leg Biometal Leg Wheel Wheel Hover Unit Improved Antigrav System Flight Unit Xenon Bombardment Thruster Utility Improved Heat Sink Device Improved Heat Sink Storage Huge Storage Unit Processor Targeting Computer Hackware Relay Coupler [Grunt] Protection Improved Light Armor Plating Weapon Chainsword Energy Gun Cooled Pulse Rifle Energy Cannon Plasma Cannon Ballistic Gun Minigun Launcher Mini Grenade Launcher Special Weapon Remote Datajack Impact Weapon Power Maul Slashing Weapon Chainsword Build | -11 -10 -10 -9 -9 -9 -8 -8 -8 -7 -7 -7 -7 -7 -7 -7 -5 -5 -5 -4 -4 -3 -2 ------- Run | Yrd Mat Min Mat Min Exi Min Mat Gar Fac Gar Fac Gar Fac Sto Rec Fac Upp Upp Fac Gar Res Res Slots Evolved 16 | . . . 2 . . . 2 . 2 . . . . . . 4 . . 2 . 2 2 Power 2 | . . . . . . . . . . . . . . . . 2 . . . . . . Propulsion 4 | . . . . . . . . . . . . . . . . 1 . . 1 . 2 . Utility 9 | . . . 2 . . . 1 . 2 . . . . . . 1 . . 1 . . 2 Weapon 1 | . . . . . . . 1 . . . . . . . . . . . . . . . Parts Attached 174 | 9 5 6 10 3 . 3 6 10 7 11 8 5 7 9 4 7 2 . 36 7 2 17 Power 22 | 1 . 1 1 . . . . . 1 1 1 . . 2 . 2 2 . 6 1 . 3 Engine 14 | 1 . 1 1 . . . . . 1 1 1 . . 2 . 2 2 . 2 . . . Core 3 | . . . . . . . . . . . . . . . . . . . 2 1 . . Reactor 5 | . . . . . . . . . . . . . . . . . . . 2 . . 3 Propulsion 35 | 4 1 3 3 . . 1 1 4 1 1 . 1 . . . 1 . . 7 2 1 4 Treads 5 | . . . . . . . . 2 . . . . . . . . . . 1 . . 2 Leg 1 | . . . . . . . . . . . . . . . . . . . . . 1 . Wheel 27 | 4 1 3 3 . . 1 1 2 1 1 . 1 . . . 1 . . 6 2 . . Hover 1 | . . . . . . . . . . . . . . . . . . . . . . 1 Flight 1 | . . . . . . . . . . . . . . . . . . . . . . 1 Utility 74 | 2 3 . 4 2 . 1 2 3 4 5 4 3 4 5 2 3 . . 17 1 1 8 Device 40 | 1 1 . 2 1 . 1 1 2 2 4 1 2 2 3 1 2 . . 10 . 1 3 Storage 5 | 1 2 . . . . . . . 1 . . . . . . . . . . . . 1 Processor 5 | . . . . . . . 1 . . . 1 . . . . . . . 2 . . 1 Hackware 9 | . . . . . . . . . . . . . 1 1 . 1 . . 3 1 . 2 Protection 15 | . . . 2 1 . . . 1 1 1 2 1 1 1 1 . . . 2 . . 1 Artifact . | . . . . . . . . . . . . . . . . . . . . . . . Weapon 43 | 2 1 2 2 1 . 1 3 3 1 4 3 1 3 2 2 1 . . 6 3 . 2 Energy Gun 15 | 2 1 1 2 . . 1 2 1 1 1 1 . . . 1 1 . . . . . . Energy Cannon 5 | . . . . . . . . . . 1 2 . 2 . . . . . . . . . Ballistic Gun 6 | . . . . . . . 1 1 . . . . . . 1 . . . . 1 . 2 Ballistic Cannon . | . . . . . . . . . . . . . . . . . . . . . . . Launcher 10 | . . . . 1 . . . 1 . 2 . . . 2 . . . . 3 1 . . Special Weapon 4 | . . 1 . . . . . . . . . 1 1 . . . . . 1 . . . Impact Weapon 1 | . . . . . . . . . . . . . . . . . . . 1 . . . Slashing Weapon 2 | . . . . . . . . . . . . . . . . . . . 1 1 . . Piercing Weapon . | . . . . . . . . . . . . . . . . . . . . . . . Special Melee Weapon . | . . . . . . . . . . . . . . . . . . . . . . . Unidentified Prototypes 7 | . . . 1 . . . 2 . . . . . . 2 1 . . . . . . 1 Parts Lost 126 | . 2 1 1 . . 1 . 4 . 2 5 2 . 4 . . 7 . 45 5 . 47 Power 17 | . . 1 . . . . . . . . 1 . . . . . 2 . 8 1 . 4 Propulsion 29 | . 1 . 1 . . 1 . 1 . . . 1 . . . . . . 13 2 . 9 Utility 51 | . . . . . . . . 1 . 1 2 1 . 3 . . 4 . 13 1 . 25 Weapon 29 | . 1 . . . . . . 2 . 1 2 . . 1 . . 1 . 11 1 . 9 Highest Loss Streak 34 | . 1 1 1 . . 1 . 1 . 2 5 1 . 3 . . 5 . 20 5 . 34 To Critical Strikes 4 | . . . . . . . . . . . . . . . . . . . 4 . . . Average Backups 19 | 2 7 11 18 20 20 20 19 19 19 23 22 21 24 24 24 24 22 21 15 22 21 19 Power 1 | . 1 1 2 3 4 4 4 3 2 2 1 1 1 1 1 1 . . . . . . Propulsion 1 | . 3 4 3 3 3 3 3 3 3 2 2 2 2 2 2 1 1 1 . 1 . . Utility 10 | . 1 3 5 6 6 6 4 3 4 9 10 11 14 15 13 14 12 12 10 16 17 15 Weapon 4 | . . 2 7 7 7 7 7 8 8 8 6 5 5 4 6 6 6 6 2 3 3 2 Tool/Special . | . . . . . . . . . . . . . . . . . . . . . . . Unused Backups 28 | . 1 . 4 1 . . 6 3 1 1 3 . 3 . . . . . . 1 . 4 Power 8 | . 1 . 1 . . . 1 2 . 1 2 . . . . . . . . . . . Propulsion 3 | . . . . . . . 1 1 . . . . 1 . . . . . . . . . Utility 9 | . . . . 1 . . 3 . . . 1 . . . . . . . . 1 . 3 Weapon 7 | . . . 3 . . . 1 . 1 . . . 1 . . . . . . . . 1 Tool/Special 1 | . . . . . . . . . . . . . 1 . . . . . . . . . Average Slot Usage (%) 85 | . 99 99 95 100 100 98 98 98 93 93 89 90 91 91 88 76 86 88 70 81 75 63 Engine 6 | . 14 13 11 11 11 11 9 9 7 7 7 7 7 7 7 6 15 17 2 3 . . Core 1 | . . . . . . . . . . . . . . . . . . . 3 4 4 1 Treads 1 | . . . . . . . . 13 . . . . . . . . . . . . . 6 Wheel 10 | . 27 28 21 22 22 20 18 3 15 8 7 6 7 7 7 10 11 11 6 14 14 2 Device 22 | . 14 14 15 22 22 22 20 18 27 30 28 23 29 31 34 27 32 35 21 11 10 7 Storage 7 | . 14 14 11 11 11 11 9 9 7 7 7 7 7 7 7 5 5 5 5 5 4 5 Processor 3 | . . . . . . . 5 9 7 7 7 5 . . . . . . 1 10 9 11 Hackware 3 | . . . . . . . . . . . . . 6 5 . 1 1 . 6 13 12 6 Protection 5 | . . . 13 11 11 11 9 8 7 6 8 15 8 7 7 5 . . 2 . . . Energy Gun 9 | . 28 27 22 19 22 22 18 17 12 13 12 6 6 6 14 11 9 5 1 . . . Energy Cannon 2 | . . . . . . . . . . 1 3 14 12 14 . . . . 1 . . 2 Ballistic Gun 2 | . . . . . . . 9 8 7 3 4 . . . 6 3 5 11 . 4 4 1 Impact Weapon 1 | . . . . . . . . . . . . . . . . . . . 4 2 . 3 Slashing Weapon 1 | . . . . . . . . . . . . . . . . . . . 4 6 9 2 Peak Build Rating 116 | 7 8 10 18 18 18 18 29 31 40 48 50 50 52 54 66 84 88 88 103 92 97 116 Average Rating 55 | 5 6 8 15 16 18 17 25 29 33 45 47 48 50 52 58 72 85 88 78 86 94 87 On Entrance 44 | . 7 7 10 17 18 18 18 29 25 39 48 49 47 52 53 66 84 88 88 74 86 97 Avg Prop Armor Cover (%) 5 | . . . . . . . . . . . . . . . . . . . 3 2 9 9 Naked Turns . | . . . . . . . . . . . . . . . . . . . . . . . Heaviest Build 151 | 14 49 51 66 65 61 61 66 66 109 114 123 123 127 123 121 128 140 131 140 111 101 151 Greatest Support 63 | 26 20 20 20 20 20 20 20 43 20 28 28 28 28 28 28 40 40 40 58 50 48 63 Greatest Overweight (x) 16 | 1 2 2 6 3 3 6 3 6 5 5 4 4 4 4 4 3 3 3 12 3 2 16 Average Overweight (x) 2 | . . 2 2 3 3 3 3 1 4 3 3 3 4 4 3 2 3 3 3 1 2 2 Largest Inventory Capacity 25 | 8 20 20 20 20 20 20 20 20 25 25 25 25 25 25 25 25 25 25 25 25 25 25 Average Capacity 23 | 7 13 20 20 20 20 20 20 20 23 25 25 25 25 25 25 25 25 25 25 25 25 22 Most Carried 25 | 6 10 17 20 20 20 20 20 20 25 25 25 25 25 25 25 25 25 21 22 25 24 24 Average Carried 19 | 2 7 11 18 19 20 19 19 19 21 24 23 22 24 24 24 24 22 21 16 23 22 19 Final Capacity 25 | 8 20 20 20 20 20 20 20 20 25 25 25 25 25 25 25 25 25 25 25 25 25 5 Final Carried 25 | 6 9 16 20 20 20 20 20 20 25 25 21 23 25 24 25 25 21 21 20 22 24 2 Scrap Engine Consumption 168 | . . . . . . . . . . . . . . . 26 15 9 . 103 6 2 7 Constructs Created 12 | . . . . . . . . . . . . . . . . 1 2 . 7 . . 2 Constructs Modified 42 | . . . . . . . . . . . . . . . . . 5 . 32 3 . 2 Class Distribution -------------------- 19% | Bothacker-Tank 10% | Scavenger-Gladiator 10% | Mutant 10% | Gladiator 9% | Scavenger-Skirmisher 8% | Scavenger-Mutant 6% | Bothacker-Gunner 6% | Bothacker-Skirmisher 5% | Bothacker-Gladiator 3% | Bothacker-Mutant 3% | Scavenger-Tank Dominant Class ---------------- Mutant | -10/Materials Mutant | -10/Mines Scavenger-Mutant | -9/Materials Scavenger-Mutant | -9/Mines Scavenger-Mutant | -9/Exiles Scavenger-Mutant | -8/Mines Scavenger-Skirmisher | -8/Materials Scavenger-Skirmisher | -8/Garrison Scavenger-Gunner | -7/Factory Bothacker-Gunner | -7/Garrison Bothacker-Gunner | -7/Factory Bothacker-Tank | -7/Garrison Bothacker-Tank | -7/Factory Bothacker-Tank | -7/Storage Bothacker-Tank | -7/Recycling Bothacker-Skirmisher | -5/Factory Tank | -5/Upper Caves Tank | -5/Upper Caves Scavenger-Gladiator | -4/Factory Bothacker-Gladiator | -4/Garrison Bothacker-Gladiator | -3/Research Bothacker-Mutant | -2/Research Resources | -11 -10 -10 -9 -9 -9 -8 -8 -8 -7 -7 -7 -7 -7 -7 -7 -5 -5 -5 -4 -4 -3 -2 ----------- Run | Yrd Mat Min Mat Min Exi Min Mat Gar Fac Gar Fac Gar Fac Sto Rec Fac Upp Upp Fac Gar Res Res Matter Collected 4790 | 290 55 110 126 40 . 30 86 357 85 550 62 301 168 180 167 177 182 . 1228 77 45 474 Remotely . | . . . . . . . . . . . . . . . . . . . . . . . Salvage Created 10576 | 157 298 166 553 86 . 49 249 964 82 621 62 406 215 897 319 480 451 . 3348 144 45 984 Parts 434 | 10 15 12 30 5 . 4 17 42 9 22 2 10 8 28 16 14 12 . 117 8 3 50 Haulers Intercepted 5 | . 1 . . . . . 1 . . . . . . 1 . . . . 1 . . 1 Recyclers Shooed 9 | . 1 . 5 . . . . . . . . . . . . . . . 2 . . 1 Parts Field Recycled 2 | . . . . . . . . . . . . . . . . . . . 2 . . . Retrieved Matter 51 | . . . . . . . . . . . . . . . . . . . 51 . . . Parts Self-Destructed 8 | . . . . . . . . . . . . . . . . . 8 . . . . . Prevented . | . . . . . . . . . . . . . . . . . . . . . . . Parts Restored . | . . . . . . . . . . . . . . . . . . . . . . . Kills | -11 -10 -10 -9 -9 -9 -8 -8 -8 -7 -7 -7 -7 -7 -7 -7 -5 -5 -5 -4 -4 -3 -2 ------- Run | Yrd Mat Min Mat Min Exi Min Mat Gar Fac Gar Fac Gar Fac Sto Rec Fac Upp Upp Fac Gar Res Res Combat Hostiles Destroyed 166 | . 7 3 8 2 . . 2 22 1 20 1 10 4 13 4 8 8 . 32 7 . 14 Melee 14 | . . . . . . . . . . . . . . . . . . . 12 . . 2 Guns 72 | . 6 3 7 2 . . 2 8 1 13 1 . . 4 4 7 7 . 3 . . 4 Cannons 24 | . . . . . . . . . . . . 6 3 7 . . . . 5 . . 3 AOE 41 | . . . . . . . . 11 . 7 . 3 . . . . . . 9 7 . 4 Classes Destroyed 21 | 2 4 2 2 2 . . . 1 1 1 . 1 . . 2 . 2 . . 1 . . Worker 22 | . . 1 1 . . . 2 . 2 . . . . . . 1 . . 13 . 1 1 Builder 11 | . . . . 1 . 1 1 . . . . . . . . . . . 6 . 1 1 Tunneler 8 | 4 1 . . 1 . 1 . . . . . . . . . . . . 1 . . . Hauler 5 | . 1 . . . . . 1 . . . . . . 1 . . . . 1 . . 1 Recycler 15 | 1 . . 2 . . . . . . . . . . 1 . . . . 11 . . . Operator 1 | . . . 1 . . . . . . . . . . . . . . . . . . . Watcher 6 | . 1 . 1 . . . 1 . . . . . . 1 . . . . 2 . . . Swarmer 25 | . 3 . . . . . . 5 . 3 . . . . . . 5 . 5 . . 4 Cutter 3 | . . . . . . . . . . . . . . . . . . . . 3 . . Grunt 55 | . 4 1 5 . . . 1 10 . 6 . 3 2 6 . 5 . . 4 4 . 4 Brawler 6 | . . . 1 . . . . 1 . 2 . . . 1 . 1 . . . . . . Duelist 2 | . . . . . . . . . . 2 . . . . . . . . . . . . Sentry 27 | . . 2 2 . . . 1 3 . 4 1 3 1 4 1 . . . 3 . . 2 Demolisher 2 | . . . . 2 . . . . . . . . . . . . . . . . . . Specialist 3 | . . . . . . . . 3 . . . . . . . . . . . . . . Hunter 8 | . . . . . . . . . . . . 1 . 1 . . . . 6 . . . Programmer 31 | . . . . . . . . . 1 3 . 3 1 1 . 2 2 . 14 . . 4 Behemoth 1 | . . . . . . . . . . . . . . . . . 1 . . . . . Scientist 2 | . . . . . . . . . . . . . . . 2 . . . . . . . Scrapper 3 | . . . . . . . . . . . . . . . 3 . . . . . . . Samaritan 1 | . . . . . . . . . . . . . . . . . 1 . . . . . Best Kill Streak 7 | 4 3 3 4 2 . 1 4 7 1 5 1 3 2 3 3 3 5 . 5 4 1 5 Combat Bots Only 7 | . 3 3 3 2 . . 1 7 1 5 1 3 2 3 3 2 5 . 5 4 . 4 Max Kills in Single Turn 3 | 1 1 1 2 1 . 1 2 3 1 2 1 2 1 2 1 2 1 . 3 2 1 3 Gunslinging 1 | . . . 1 . . . . 1 . . . . . . . 1 . . . . . . Exploded 3 | . . . . . . . . 3 . 2 . 2 . . . . . . 3 2 . 3 Melee 2 | . . . . . . . . . . . . . . . . . . . 2 . . 1 Uniques/NPCs Destroyed . | . . . . . . . . . . . . . . . . . . . . . . . Combat | -11 -10 -10 -9 -9 -9 -8 -8 -8 -7 -7 -7 -7 -7 -7 -7 -5 -5 -5 -4 -4 -3 -2 -------- Run | Yrd Mat Min Mat Min Exi Min Mat Gar Fac Gar Fac Gar Fac Sto Rec Fac Upp Upp Fac Gar Res Res Hostile Shots Fired 1583 | . 38 16 39 2 . 6 . 119 4 209 27 105 26 129 47 33 63 12 453 26 . 229 Missed 511 | . 9 3 8 . . 2 . 47 2 81 14 48 9 43 19 8 17 6 134 8 . 53 Hits 1072 | . 29 13 31 2 . 4 . 72 2 128 13 57 17 86 28 25 46 6 319 18 . 176 Melee 5 | . . . 2 . . . . 1 . . . . . 2 . . . . . . . . Projectile 1067 | . 29 13 29 2 . 4 . 71 2 128 13 57 17 84 28 25 46 6 319 18 . 176 AOE 7 | . . . . 3 . . . . . . . . . . . . . . 2 2 . . Critical Strikes 48 | . 1 . 1 . . . . 3 . 3 . 1 . 3 . 2 2 . 20 . . 12 Actively Blocked 1 | . . . . . . . . . . . . . . . . . . . 1 . . . Part Disruptions 2 | . . . . . . . . . 1 . . . . . . . . . 1 . . . Damage Taken 18138 | . 309 188 423 78 . 58 . 1099 31 1001 617 681 157 1018 210 520 782 31 6188 495 24 4228 Core 3506 | . 75 28 83 14 . . . 132 15 217 152 21 26 165 46 60 59 . 854 84 24 1451 Absorbed by Shields 866 | . . . . . . . . . . 258 . . . . 80 . 203 11 297 . . 17 Redirected to Shielding 166 | . . . . . . . . . . . . . . . . . . . 166 . . . Ignored by Resistances 79 | . . . . . . . . . . 27 . . . 28 24 . . . . . . . Regen/Repaired (Parts) 1575 | . . . . . . . . . . . . . 73 256 45 195 118 . 888 . . . Core Remaining (%) 65 | 100 . 58 . . . 75 . 76 . . . . . . 8 . . 88 . 18 98 . Volleys Fired 560 | 11 33 13 31 7 . 7 9 53 3 69 6 31 22 39 17 26 35 . 86 12 . 50 Largest 3 | 2 2 2 2 2 . 2 3 3 3 3 2 3 3 3 3 3 3 . 2 1 . 3 Hottest 241 | 90 90 150 112 112 . 112 140 155 159 170 100 170 180 180 125 125 241 . 160 49 . 106 Shots Fired 1129 | 22 66 26 62 14 . 14 27 121 8 144 9 82 48 94 44 60 83 . 108 11 . 86 Gun 806 | 22 66 25 62 14 . 14 27 109 8 120 9 26 13 33 44 56 75 . 29 . . 54 Cannon 222 | . . . . . . . . . . 4 . 47 27 58 . . 8 . 49 . . 29 Launcher 75 | . . . . . . . . 12 . 20 . 9 . . . . . . 21 11 . 2 Special 26 | . . 1 . . . . . . . . . . 8 3 . 4 . . 9 . . 1 Kinetic 201 | . . . . . . . 9 33 3 27 2 . . . 18 14 20 . 24 . . 51 Thermal 825 | 22 66 26 62 14 . 14 18 76 5 97 7 73 40 91 26 42 63 . 54 . . 29 Explosive 75 | . . . . . . . . 12 . 20 . 9 . . . . . . 21 11 . 2 Electromagnetic 3 | . . . . . . . . . . . . . . . . . . . . . . 3 Robot Hit Streak 27 | 11 14 10 14 5 . 4 7 26 27 21 6 23 12 9 13 10 13 . 9 7 . 8 Robot Miss Streak 5 | 2 2 1 3 3 . 2 4 3 2 4 1 3 2 3 4 5 3 . 5 1 . 3 Penetration Max 1 | . . . . . . . . 1 . . . . . . . . . . . . . 1 Secondary Targets 12 | . 1 . 2 . . . . 3 . 3 . . . . . 1 1 . . . . 1 Max Gunslinging Chain 2 | . 1 . 1 . . . . 2 . 1 . . . . . 1 1 . . . . 1 Shots Hit Robots 883 | 16 47 20 45 10 . 9 14 82 4 87 9 62 35 64 29 46 54 . 161 9 3 77 Core Hits 468 | 6 16 8 21 6 . 3 9 55 7 89 4 25 8 25 15 23 22 . 76 16 1 33 Critical Kills 5 | . . . . . . . . . . . . . . 1 . . . . 2 . . 2 Critical Parts Destroyed 23 | . . . . . . . . . . . . . . . . . . . 18 . . 5 Critical Strikes 60 | 1 6 . 5 1 . 1 2 3 . 2 . 3 . 1 . 1 1 . 21 . . 12 Burn 26 | 1 6 . 5 1 . 1 2 3 . 2 . 3 . . . 1 1 . . . . . Meltdown 1 | . . . . . . . . . . . . . . 1 . . . . . . . . Destroy 5 | . . . . . . . . . . . . . . . . . . . . . . 5 Smash 22 | . . . . . . . . . . . . . . . . . . . 20 . . 2 Sever 6 | . . . . . . . . . . . . . . . . . . . 1 . . 5 Melee Attacks 222 | . . . . . . . . . . . . . . . . . . . 162 15 6 39 Impact 109 | . . . . . . . . . . . . . . . . . . . 86 1 . 22 Slashing 113 | . . . . . . . . . . . . . . . . . . . 76 14 6 17 Piercing . | . . . . . . . . . . . . . . . . . . . . . . . Sneak Attacks 43 | . . . . . . . . . . . . . . . . . . . 39 . 3 1 Combat Hostiles . | . . . . . . . . . . . . . . . . . . . . . . . Follow-up Attacks 20 | . . . . . . . . . . . . . . . . . . . 15 . . 5 Damage Inflicted 27328 | 187 549 233 705 160 . 153 280 2606 74 2490 156 1712 741 1643 580 865 1402 . 8335 1379 156 2922 Guns 10764 | 187 549 233 700 160 . 153 280 1367 74 1339 156 438 246 592 580 865 1234 . 557 . . 1054 Cannons 3910 | . . . . . . . . . . . . 850 495 1044 . . 168 . 786 . . 567 Explosions 6049 | . . . . . . . . 1239 . 1151 . 424 . . . . . . 1500 1214 . 521 Melee 6566 | . . . . . . . . . . . . . . . . . . . 5489 165 156 756 Ramming 39 | . . . 5 . . . . . . . . . . 7 . . . . 3 . . 24 Kinetic 2614 | . . . . . . . 82 324 20 217 36 . . . 174 168 179 . 397 . . 1017 Thermal 12283 | 187 549 233 700 160 . 153 198 1043 54 1122 120 1288 741 1636 406 697 1223 . 1206 . . 567 Explosive 5789 | . . . . . . . . 1239 . 1151 . 424 . . . . . . 1240 1214 . 521 Electromagnetic 37 | . . . . . . . . . . . . . . . . . . . . . . 37 Impact 3060 | . . . . . . . . . . . . . . . . . . . 2684 . . 376 Slashing 3506 | . . . . . . . . . . . . . . . . . . . 2805 165 156 380 Piercing . | . . . . . . . . . . . . . . . . . . . . . . . Highest Corruption 29 | . . . . . . . . . 1 1 1 1 1 5 5 1 4 4 24 29 . 14 Average Corruption 6 | . . . . . . . . . 1 1 1 1 1 1 5 1 2 4 12 25 . 6 Corruption Purged . | . . . . . . . . . . . . . . . . . . . . . . . Corruption Blocked . | . . . . . . . . . . . . . . . . . . . . . . . Effects 261 | . . . . . . . . . 3 12 4 4 4 14 32 . 6 1 134 28 . 19 Message Errors 55 | . . . . . . . . . 1 3 . 2 1 3 5 . 2 . 28 5 . 5 Matter Fused 60 | . . . . . . . . . 1 5 3 1 1 1 5 . 1 1 33 4 . 4 Heat Flow Errors 41 | . . . . . . . . . 1 3 1 . . 4 3 . 1 . 21 4 . 3 Energy Discharges 31 | . . . . . . . . . . . . . 2 . 3 . 1 . 19 5 . 1 Parts Rejected 5 | . . . . . . . . . . . . . . . . . . . 2 1 . 2 Parts Fused 1 | . . . . . . . . . . . . . . . 1 . . . . . . . Data Loss (minor) 29 | . . . . . . . . . . 1 . 1 . 1 8 . . . 16 2 . . Data Loss (major) 12 | . . . . . . . . . . . . . . 1 . . . . 6 4 . 1 Misfires 6 | . . . . . . . . . . . . . . . 5 . 1 . . . . . Alerts 10 | . . . . . . . . . . . . . . 3 1 . . . 5 1 . . Misdirections 6 | . . . . . . . . . . . . . . . . . . . 4 1 . 1 Weapon Failures 5 | . . . . . . . . . . . . . . 1 1 . . . . 1 . 2 Overload Shots 1 | . . . . . . . . . . . . . . 1 . . . . . . . . Overflow Damage 2334 | . . . . . . . . 11 . 16 . . . 9 . . . . 2060 32 63 143 Projectiles 53 | . . . . . . . . . . . . . . 9 . . . . 21 . . 23 Explosions 252 | . . . . . . . . 11 . 16 . . . . . . . . 175 25 . 25 Melee 2029 | . . . . . . . . . . . . . . . . . . . 1864 7 63 95 Knockbacks 23 | . . . . . . . . . . . . . . . . . . . 21 . . 2 Impact 20 | . . . . . . . . . . . . . . . . . . . 18 . . 2 Kinetic 2 | . . . . . . . . . . . . . . . . . . . 2 . . . Secondary 1 | . . . . . . . . . . . . . . . . . . . 1 . . . Self-Inflicted Damage 434 | . . . 2 . . . . 12 . 29 . 36 . 3 . . . . 119 89 . 144 Shots 10 | . . . . . . . . 1 . 2 . 1 . . . . . . 2 2 . 2 Rammed 8 | . . . 1 . . . . . . . . . . 1 . . . . 1 . . 5 Targets Rammed 8 | . . . 1 . . . . . . . . . . 1 . . . . 1 . . 5 Kicked . | . . . . . . . . . . . . . . . . . . . . . . . Crushed . | . . . . . . . . . . . . . . . . . . . . . . . Highest Temperature 431 | 120 120 40 172 66 . 63 39 144 70 245 127 178 108 431 145 17 247 . 276 261 . 167 Average Temperature 70 | 52 33 20 60 33 . 24 21 41 26 56 58 71 45 145 33 8 82 . 92 97 . 51 Received Heat Transfer 3299 | . 138 81 204 . . . . 351 . 299 36 255 42 441 79 180 48 . 461 72 . 612 Effects 3 | . . . . . . . . . . . . . . 3 . . . . . . . . Shutdowns 2 | . . . . . . . . . . . . . . 2 . . . . . . . . Short Circuit 1 | . . . . . . . . . . . . . . 1 . . . . . . . . Siege Activations . | . . . . . . . . . . . . . . . . . . . . . . . Martial Activations . | . . . . . . . . . . . . . . . . . . . . . . . Shielding Activations . | . . . . . . . . . . . . . . . . . . . . . . . Robots Disrupted . | . . . . . . . . . . . . . . . . . . . . . . . Combat Hostiles . | . . . . . . . . . . . . . . . . . . . . . . . Robots Corrupted 10 | . . . . . . . . . . . . . . . . . . . 9 . . 1 Combat Hostiles 4 | . . . . . . . . . . . . . . . . . . . 3 . . 1 Parts Fried 15 | . . . . . . . . . . . . . . . . . . . 13 . . 2 Impact Corruptions 47 | . . . . . . . . . . . . . . . . . . . 44 . . 3 Robots Melted 11 | . 1 . 1 . . . . 3 . . . 1 1 2 . 1 1 . . . . . Combat Hostiles 11 | . 1 . 1 . . . . 3 . . . 1 1 2 . 1 1 . . . . . Parts Melted 64 | 2 3 1 5 1 . 2 2 6 . 2 . 6 4 14 3 2 3 . 8 . . . Heat Transferred 24464 | 558 1943 608 2109 444 . 444 592 2328 72 2115 247 2331 1212 3086 709 1492 2125 . 1346 . . 703 Parts Sabotaged . | . . . . . . . . . . . . . . . . . . . . . . . Parts Stolen . | . . . . . . . . . . . . . . . . . . . . . . . Parts Stripped . | . . . . . . . . . . . . . . . . . . . . . . . Power Chain Reactions . | . . . . . . . . . . . . . . . . . . . . . . . Alert | -11 -10 -10 -9 -9 -9 -8 -8 -8 -7 -7 -7 -7 -7 -7 -7 -5 -5 -5 -4 -4 -3 -2 ------- Run | Yrd Mat Min Mat Min Exi Min Mat Gar Fac Gar Fac Gar Fac Sto Rec Fac Upp Upp Fac Gar Res Res Maximum Alert Level 3 | . . . . . . . . 3 1 3 2 2 1 1 . . . . 2 2 1 1 Low Security (%) 60 | 100 100 100 100 100 . 100 100 47 11 1 . 39 93 90 100 100 . . 38 . . 98 Level 1 27 | . . . . . . . . 4 88 46 77 36 6 9 . . . . 56 29 100 1 Level 2 10 | . . . . . . . . 44 . 39 22 23 . . . . . . 4 70 . . Level 3 1 | . . . . . . . . 3 . 11 . . . . . . . . . . . . Level 4 . | . . . . . . . . . . . . . . . . . . . . . . . Level 5 . | . . . . . . . . . . . . . . . . . . . . . . . High Security . | . . . . . . . . . . . . . . . . . . . . . . . Max Security . | . . . . . . . . . . . . . . . . . . . . . . . Peak Influence 844 | 10 60 50 100 50 . 35 75 726 380 844 443 456 239 240 86 85 . . 522 667 375 225 Initial 443 | . . . . 12 . . 1 33 380 121 443 146 239 24 86 . . . . 351 375 143 Average 175 | 2 15 4 49 16 . 8 19 356 277 456 327 265 89 75 7 19 . . 203 480 315 38 Influence Increases 6561 | 25 189 75 233 90 . 45 184 773 40 743 30 330 308 606 53 241 215 . 1450 366 10 555 Destroy 0b10 Robot/C 3480 | . 140 60 160 40 . 20 60 440 20 400 20 200 180 340 20 160 160 . 640 140 . 280 Destroy 0b10 Robot/NC 405 | 25 15 5 25 10 . 10 25 15 10 . . . 15 35 . 5 10 . 170 5 10 15 Destroy Leader 628 | . 34 10 42 10 . 10 24 30 10 30 10 20 54 116 . 20 30 . 136 10 . 32 Allied During Kill 166 | . . . . . . 5 13 6 . . . . 54 75 . 8 . . 5 . . . Successful Hack 68 | . . . 5 . . . 31 . . . . . 5 9 . 18 . . . . . . Disable Machine 315 | . . . . . . . 30 . . 15 . . . 15 30 . . . 165 15 . 45 Anti-Garrison Action 400 | . . . . . . . . 100 . 200 . 50 . . . . . . . 50 . . Destroy Structure 694 | . . . 1 . . . 1 47 . 53 . 45 . 16 3 . . . 304 146 . 78 Lose Combat Pursuer 405 | . . . . 30 . . . 135 . 45 . 15 . . . 30 15 . 30 . . 105 Influence Decreases 6409 | 25 189 75 202 121 . 40 137 99 592 73 665 83 711 437 275 164 292 . 948 201 422 658 Entered New Map 1872 | . . . . 19 . . 4 19 346 53 401 63 217 29 136 . 30 . . 151 292 112 Time Decay 3417 | 25 169 65 192 102 . 40 128 . 246 . 214 . 493 308 139 104 242 . 517 . 130 303 Lost Part 834 | . 20 10 10 . . . . 40 . 20 50 20 . 40 . . 20 . 331 50 . 223 Lost Ally 286 | . . . . . . . 5 40 . . . . 1 60 . 60 . . 100 . . 20 Squads Dispatched 32 | . 3 . . . . . . . 2 . . . 3 4 . 2 . . 13 . 1 4 Investigation 4 | . 1 . . . . . . . . . . . 1 1 . 1 . . . . . . Extermination 18 | . . . . . . . . . 2 . . . 2 2 . 1 . . 8 . 1 2 Reinforcement 7 | . 2 . . . . . . . . . . . . 1 . . . . 2 . . 2 Assault . | . . . . . . . . . . . . . . . . . . . . . . . Garrison 3 | . . . . . . . . . . . . . . . . . . . 3 . . . Intercept . | . . . . . . . . . . . . . . . . . . . . . . . Searches Triggered . | . . . . . . . . . . . . . . . . . . . . . . . Construction Impeded 1 | . . . . . . . . . . . . . . . . . . . 1 . . . Haulers Reinforced 2 | . . . . . . . . . . . . . . . . . . . . . . 2 Active Scanning Responses . | . . . . . . . . . . . . . . . . . . . . . . . Cargo Convoy Interrupts . | . . . . . . . . . . . . . . . . . . . . . . . Alert ID Control Effect 4 | . . . . . . . . . . . . . . . . 2 . . 2 . . . Stealth | -11 -10 -10 -9 -9 -9 -8 -8 -8 -7 -7 -7 -7 -7 -7 -7 -5 -5 -5 -4 -4 -3 -2 --------- Run | Yrd Mat Min Mat Min Exi Min Mat Gar Fac Gar Fac Gar Fac Sto Rec Fac Upp Upp Fac Gar Res Res Distress Signals 18 | . 4 . 2 . . . 2 . . . . . . 2 . 1 . . 5 . . 2 Communications Jammed 46 | . . . . . . . . . . . . . . . . . . . 46 . . . Distress Signals 46 | . . . . . . . . . . . . . . . . . . . 46 . . . Times Spotted 277 | . 16 4 13 7 . 1 8 27 1 21 2 11 12 19 4 14 9 1 65 6 1 35 Peak Tracking Total 10 | . 4 3 5 2 . 1 4 5 1 5 1 3 3 5 3 10 2 1 6 4 2 10 Tactical Retreats 18 | . . . . 1 . . . 5 . 3 . 1 . . . 1 1 . 2 . . 4 Traps | -11 -10 -10 -9 -9 -9 -8 -8 -8 -7 -7 -7 -7 -7 -7 -7 -5 -5 -5 -4 -4 -3 -2 ------- Run | Yrd Mat Min Mat Min Exi Min Mat Gar Fac Gar Fac Gar Fac Sto Rec Fac Upp Upp Fac Gar Res Res Traps Triggered 22 | . 1 . . . . . . 5 . 2 1 3 1 1 . 1 . . 1 3 1 2 Indirectly . | . . . . . . . . . . . . . . . . . . . . . . . Trap Hack Attempts . | . . . . . . . . . . . . . . . . . . . . . . . Triggered . | . . . . . . . . . . . . . . . . . . . . . . . Disarmed . | . . . . . . . . . . . . . . . . . . . . . . . Reprogrammed . | . . . . . . . . . . . . . . . . . . . . . . . Reused . | . . . . . . . . . . . . . . . . . . . . . . . Traps Extracted . | . . . . . . . . . . . . . . . . . . . . . . . Installed . | . . . . . . . . . . . . . . . . . . . . . . . Triggered . | . . . . . . . . . . . . . . . . . . . . . . . Machines | -11 -10 -10 -9 -9 -9 -8 -8 -8 -7 -7 -7 -7 -7 -7 -7 -5 -5 -5 -4 -4 -3 -2 ---------- Run | Yrd Mat Min Mat Min Exi Min Mat Gar Fac Gar Fac Gar Fac Sto Rec Fac Upp Upp Fac Gar Res Res Machines Disabled 25 | . . 1 . . . . 2 . . 2 . 1 . 1 2 . . . 11 2 . 3 Max in Single Turn 5 | . . 1 . . . . . . . 1 . 1 . 1 1 . . . 5 1 . 1 Garrison Access 4 | . . . . . . . . . . . . . 1 1 . . . . 1 . 1 . Garrison Relay 3 | . . . . . . . . . . 1 . 1 . . . . . . . 1 . . Machines Repaired . | . . . . . . . . . . . . . . . . . . . . . . . Machines Dismantled . | . . . . . . . . . . . . . . . . . . . . . . . Machines Sabotaged . | . . . . . . . . . . . . . . . . . . . . . . . Overloaded Fab Kills . | . . . . . . . . . . . . . . . . . . . . . . . Hacking | -11 -10 -10 -9 -9 -9 -8 -8 -8 -7 -7 -7 -7 -7 -7 -7 -5 -5 -5 -4 -4 -3 -2 --------- Run | Yrd Mat Min Mat Min Exi Min Mat Gar Fac Gar Fac Gar Fac Sto Rec Fac Upp Upp Fac Gar Res Res Machines Accessed 43 | . 3 . 3 1 2 . 7 . 2 1 3 . 4 3 4 3 1 . 4 1 1 . Terminals 25 | . 2 . 3 . . . 5 . 1 1 2 . 2 2 2 2 1 . 1 1 . . Fabricators . | . . . . . . . . . . . . . . . . . . . . . . . Repair Stations 3 | . . . . . . . . . . . . . 1 . . 1 . . 1 . . . Recycling Units 1 | . 1 . . . . . . . . . . . . . . . . . . . . . Scanalyzers 1 | . . . . . . . 1 . . . . . . . . . . . . . . . Garrison Access 8 | . . . . . . . 1 . 1 . 1 . 1 1 . . . . 2 . 1 . Total Hacks 88 | . 6 . 8 1 5 . 20 . 3 2 6 . 7 4 8 8 1 . 6 1 2 . Successful 50 | . 2 . 3 1 5 . 13 . 2 . 3 . 4 3 5 3 1 . 3 . 2 . Failed 38 | . 4 . 5 . . . 7 . 1 2 3 . 3 1 3 5 . . 3 1 . . Catastrophic 7 | . . . . . . . . . 1 . 1 . 1 1 1 1 . . . 1 . . Database Lockouts . | . . . . . . . . . . . . . . . . . . . . . . . Manual 36 | . 1 . 7 . 1 . 14 . 2 . 3 . 3 4 1 . . . . . . . Terminals 57 | . 5 . 8 . . . 15 . 2 2 5 . 4 3 3 6 1 . 2 1 . . Fabricators . | . . . . . . . . . . . . . . . . . . . . . . . Repair Stations 5 | . . . . . . . . . . . . . 1 . . 2 . . 2 . . . Recycling Units 1 | . 1 . . . . . . . . . . . . . . . . . . . . . Scanalyzers 3 | . . . . . . . 3 . . . . . . . . . . . . . . . Garrison Access 11 | . . . . . . . 2 . 1 . 1 . 2 1 . . . . 2 . 2 . Terminal Hacks 24 | . 1 . . 1 5 . 6 . . . 1 . 1 2 5 1 1 . . . . . Record 9 | . . . . . 4 . . . . . . . . . 3 1 1 . . . . . Part Schematic 1 | . . . . . . . 1 . . . . . . . . . . . . . . . Prototype ID Bank 8 | . 1 . . . . . 5 . . . 1 . 1 . . . . . . . . . Open Door 3 | . . . . 1 . . . . . . . . . 2 . . . . . . . . Proto ID Catalog 1 | . . . . . 1 . . . . . . . . . . . . . . . . . Release Object 2 | . . . . . . . . . . . . . . . 2 . . . . . . . Fabricator Hacks . | . . . . . . . . . . . . . . . . . . . . . . . Repair Station Hacks 3 | . . . . . . . . . . . . . . . . 2 . . 1 . . . Scan Component 2 | . . . . . . . . . . . . . . . . 1 . . 1 . . . Repair 1 | . . . . . . . . . . . . . . . . 1 . . . . . . Recycling Unit Hacks . | . . . . . . . . . . . . . . . . . . . . . . . Scanalyzer 2 | . . . . . . . 2 . . . . . . . . . . . . . . . Retrieve Study 2 | . . . . . . . 2 . . . . . . . . . . . . . . . Garrison Access Hacks 10 | . . . . . . . 1 . 1 . 1 . 2 1 . . . . 2 . 2 . Unlock Access 4 | . . . . . . . 1 . 1 . 1 . . . . . . . 1 . . . Seal Access 4 | . . . . . . . . . . . . . 1 1 . . . . 1 . 1 . Coupler Status 2 | . . . . . . . . . . . . . 1 . . . . . . . 1 . Unauthorized Hacks 11 | . 1 . 3 . . . 4 . 1 . 1 . 1 . . . . . . . . . Terminals 10 | . . . 3 . . . 4 . 1 . 1 . 1 . . . . . . . . . Assimilate 1 | . . . 1 . . . . . . . . . . . . . . . . . . . Botnet 9 | . . . 2 . . . 4 . 1 . 1 . 1 . . . . . . . . . Fabricators . | . . . . . . . . . . . . . . . . . . . . . . . Repair Stations . | . . . . . . . . . . . . . . . . . . . . . . . Recycling Units 1 | . 1 . . . . . . . . . . . . . . . . . . . . . Reject 1 | . 1 . . . . . . . . . . . . . . . . . . . . . Scanalyzers . | . . . . . . . . . . . . . . . . . . . . . . . Garrison Access . | . . . . . . . . . . . . . . . . . . . . . . . Data Cores Recovered 1 | . . . 1 . . . . . . . . . . . . . . . . . . . Used . | . . . . . . . . . . . . . . . . . . . . . . . Hacking Detections 27 | . 2 . 3 . . . 5 . 2 1 3 . 2 . 2 3 . . 2 1 1 . Full Trace Events 3 | . . . . . . . . . . 1 . . 1 . . 1 . . . . . . Feedback Events . | . . . . . . . . . . . . . . . . . . . . . . . Feedback Blocked . | . . . . . . . . . . . . . . . . . . . . . . . Robot Schematics Acquired . | . . . . . . . . . . . . . . . . . . . . . . . Robots Built . | . . . . . . . . . . . . . . . . . . . . . . . Authchips . | . . . . . . . . . . . . . . . . . . . . . . . Time . | . . . . . . . . . . . . . . . . . . . . . . . Total Robot Build Rating . | . . . . . . . . . . . . . . . . . . . . . . . Part Schematics Acquired 1 | . . . . . . . 1 . . . . . . . . . . . . . . . Parts Built . | . . . . . . . . . . . . . . . . . . . . . . . Authchips . | . . . . . . . . . . . . . . . . . . . . . . . Time . | . . . . . . . . . . . . . . . . . . . . . . . Total Part Build Rating . | . . . . . . . . . . . . . . . . . . . . . . . Part Studies Acquired 2 | . . . . . . . 2 . . . . . . . . . . . . . . . Parts Repaired 1 | . . . . . . . . . . . . . . . . 1 . . . . . . Time 44 | . . . . . . . . . . . . . . . . 44 . . . . . . Parts Recycled . | . . . . . . . . . . . . . . . . . . . . . . . Recycled Matter . | . . . . . . . . . . . . . . . . . . . . . . . Retrieved Matter . | . . . . . . . . . . . . . . . . . . . . . . . Retrieved Components . | . . . . . . . . . . . . . . . . . . . . . . . Parts Scanalyzed . | . . . . . . . . . . . . . . . . . . . . . . . Part Schematics Acquired . | . . . . . . . . . . . . . . . . . . . . . . . Parts Damaged . | . . . . . . . . . . . . . . . . . . . . . . . Bothacking | -11 -10 -10 -9 -9 -9 -8 -8 -8 -7 -7 -7 -7 -7 -7 -7 -5 -5 -5 -4 -4 -3 -2 ------------ Run | Yrd Mat Min Mat Min Exi Min Mat Gar Fac Gar Fac Gar Fac Sto Rec Fac Upp Upp Fac Gar Res Res Used RIF Installer 4 | . . . . . . . . 2 . 1 . 1 . . . . . . . . . . Robot Detection 1 | . . . . . . . . . . 1 . . . . . . . . . . . . Alert ID Control 1 | . . . . . . . . 1 . . . . . . . . . . . . . . Autoassimilate 1 | . . . . . . . . . . . . 1 . . . . . . . . . . Robots Hacked 17 | . . . . . . . . . . . . . 3 1 . 4 . . 8 . . 1 Non-combat 4 | . . . . . . . . . . . . . 3 1 . . . . . . . . Combat 13 | . . . . . . . . . . . . . . . . 4 . . 8 . . 1 Autoassimilated 3 | . . . . . . . . . . . . . . . . 1 . . 2 . . . Robot Hacks Applied 15 | . . . . . . . . . . . . . 3 1 . 3 . . 7 . . 1 start_evac 1 | . . . . . . . . . . . . . 1 . . . . . . . . . map_route 1 | . . . . . . . . . . . . . . 1 . . . . . . . . scatter_targeting 2 | . . . . . . . . . . . . . . . . . . . 2 . . . overwrite_iff 3 | . . . . . . . . . . . . . . . . 1 . . 1 . . 1 streamctrl_high 1 | . . . . . . . . . . . . . . . . 1 . . . . . . formatsys_low 2 | . . . . . . . . . . . . . 2 . . . . . . . . . formatsys_high 5 | . . . . . . . . . . . . . . . . 1 . . 4 . . . Relay Couplers Released 11 | . . . . . . . . . . 5 . 3 . . . . . . . 3 . . Machine Destruction 11 | . . . . . . . . . . 5 . 3 . . . . . . . 3 . . Attached 7 | . . . . . . . . . . . . . 1 1 . 1 . . 2 1 . 1 Fabnet Peak Effective % . | . . . . . . . . . . . . . . . . . . . . . . . Robots Rewired 3 | . . . . . . . . . . . . 3 . . . . . . . . . . Allies Hacked . | . . . . . . . . . . . . . . . . . . . . . . . Hacks Repelled . | . . . . . . . . . . . . . . . . . . . . . . . Allies | -11 -10 -10 -9 -9 -9 -8 -8 -8 -7 -7 -7 -7 -7 -7 -7 -5 -5 -5 -4 -4 -3 -2 -------- Run | Yrd Mat Min Mat Min Exi Min Mat Gar Fac Gar Fac Gar Fac Sto Rec Fac Upp Upp Fac Gar Res Res Total Allies 22 | . . . . 5 . . . . . . . 3 2 . . 4 . . 7 . . 1 Largest Group 4 | . . . . 3 3 3 3 2 . . . 2 4 4 1 2 . . 2 . . 1 Highest-Rated Group 143 | . . . . 42 40 40 40 32 . . . 80 143 143 23 76 . . 94 . . 30 Highest-Rated Ally 49 | . . . . 31 16 16 16 16 . . . 40 40 40 23 47 . . 49 . . 30 Total Orders 18 | . . . . . . . . 2 . . . . 1 12 . . . . 3 . . . STAY 5 | . . . . . . . . 1 . . . . . 4 . . . . . . . . ROAM 4 | . . . . . . . . . . . . . . 1 . . . . 3 . . . FOLLOW 5 | . . . . . . . . 1 . . . . . 4 . . . . . . . . AID 4 | . . . . . . . . . . . . . 1 3 . . . . . . . . Ally Attacks 144 | . . . . 2 . 4 22 12 . . . . 20 37 . 25 . . 19 . . 3 Total Damage 2782 | . . . . 20 . 29 196 136 . . . . 413 917 . 441 . . 563 . . 67 Kills 22 | . . . . . . 1 1 . . . . . 8 8 . 2 . . 2 . . . Allies Corrupted . | . . . . . . . . . . . . . . . . . . . . . . . Allies Melted . | . . . . . . . . . . . . . . . . . . . . . . . Intel | -11 -10 -10 -9 -9 -9 -8 -8 -8 -7 -7 -7 -7 -7 -7 -7 -5 -5 -5 -4 -4 -3 -2 ------- Run | Yrd Mat Min Mat Min Exi Min Mat Gar Fac Gar Fac Gar Fac Sto Rec Fac Upp Upp Fac Gar Res Res Active Infowar (turns) 7921 | 47 313 252 288 325 294 200 215 . . 592 365 . . . . 54 725 73 4019 . 74 85 Terrain 1423 | . . . . . . . . . . . . . . . . . . . 1264 . 74 85 Seismic 5254 | 47 313 252 288 325 294 200 215 . . . . . . . . . . . 3320 . . . Jamming 3288 | . . . . . . . . . . 592 365 . . . . 54 725 73 1479 . . . Robot Analysis Total . | . . . . . . . . . . . . . . . . . . . . . . . Derelict Logs Recovered 4 | . . 2 . 1 . . . . . . . . . . . . 1 . . . . . Drone Launches . | . . . . . . . . . . . . . . . . . . . . . . . Drone Recoveries . | . . . . . . . . . . . . . . . . . . . . . . . Exploration | -11 -10 -10 -9 -9 -9 -8 -8 -8 -7 -7 -7 -7 -7 -7 -7 -5 -5 -5 -4 -4 -3 -2 ------------- Run | Yrd Mat Min Mat Min Exi Min Mat Gar Fac Gar Fac Gar Fac Sto Rec Fac Upp Upp Fac Gar Res Res Turns Passed 18931 | 119 672 694 471 325 294 200 517 1308 520 1278 445 668 1321 957 1262 535 725 73 4636 569 275 1067 Spaces Moved 10144 | 79 404 535 265 190 236 135 392 546 360 658 266 299 728 453 791 271 436 53 2114 380 219 334 Core 96 | 1 . . . . . . . . . . . . . . . . . . . . . 95 Treads 488 | . . . . . . . . 360 . . . . . . . . . . 7 . . 121 Legs . | . . . . . . . . . . . . . . . . . . . . . . . Wheels 8725 | 78 404 535 265 190 236 135 392 186 360 658 266 299 728 453 791 271 436 53 1302 380 219 88 Hover 789 | . . . . . . . . . . . . . . . . . . . 775 . . 14 Flight 46 | . . . . . . . . . . . . . . . . . . . 30 . . 16 Fastest Speed 40 | 50 80 110 110 125 125 125 115 115 115 145 145 145 160 160 145 125 140 140 95 100 115 40 Average Speed 143 | 85 94 110 123 125 125 128 115 201 132 145 148 159 160 160 152 126 140 140 157 120 116 155 Slowest Speed 695 | 95 110 110 170 125 125 170 125 400 145 160 160 160 160 160 160 145 140 140 425 147 131 695 Overloaded Moves . | . . . . . . . . . . . . . . . . . . . . . . . Propulsion Burnouts . | . . . . . . . . . . . . . . . . . . . . . . . Robots Hopped . | . . . . . . . . . . . . . . . . . . . . . . . Potential Cave-ins . | . . . . . . . . . . . . . . . . . . . . . . . Cave-ins Triggered . | . . . . . . . . . . . . . . . . . . . . . . . Exploration Rate (%) 34 | 4 54 89 21 24 60 38 31 52 8 53 7 26 17 55 89 5 64 10 30 37 4 8 Regions Visited 22 Branch Regions 8 Pre-discovered Areas 3 | . . 2 . . 1 . . . . . . . . . . . . . . . . . Known Exits Taken 4 | . . . . . . . 1 . 1 . 1 . . . . . . . 1 . . . Unknown Exits Taken 14 | 1 1 1 1 1 1 1 . . . . . . 1 1 1 1 1 1 . . 1 . Scrap Searched 4 | . . 1 . . . . . . . . . . . . . . 3 . . . . . Spaces Dug 77 | . . . . . . . . 8 . 6 . . . . . . . . 41 13 . 9 Terrain Destroyed 471 | . . . . . . . . 38 . 50 . 59 . 15 . . . . 177 100 . 32 Melee 37 | . . . . . . . . . . . . . . . . . . . 24 4 . 9 Projectile 26 | . . . . . . . . 1 . . . 1 . 15 . . . . 8 . . 1 AOE 408 | . . . . . . . . 37 . 50 . 58 . . . . . . 145 96 . 22 Terrain Rammed . | . . . . . . . . . . . . . . . . . . . . . . . Walls Destroyed . | . . . . . . . . . . . . . . . . . . . . . . . Machines Disabled . | . . . . . . . . . . . . . . . . . . . . . . . Actions | -11 -10 -10 -9 -9 -9 -8 -8 -8 -7 -7 -7 -7 -7 -7 -7 -5 -5 -5 -4 -4 -3 -2 --------- Run | Yrd Mat Min Mat Min Exi Min Mat Gar Fac Gar Fac Gar Fac Sto Rec Fac Upp Upp Fac Gar Res Res Total 13218 | 104 628 609 350 263 235 148 440 659 398 882 311 436 866 625 822 421 489 52 3065 455 229 731 Wait 1768 | . 174 39 18 60 . 1 16 34 8 101 19 63 70 110 6 103 6 . 659 11 . 270 Move 10125 | 78 403 534 264 189 235 134 391 545 360 657 266 298 727 452 790 270 435 52 2114 379 218 334 Hop . | . . . . . . . . . . . . . . . . . . . . . . . Pick Up 115 | 5 6 9 12 1 . 1 9 6 10 6 5 2 12 4 1 2 1 . 14 5 3 1 Fast Attach 66 | 7 . 1 1 . . 1 1 1 2 . . . 1 3 1 4 1 . 23 4 1 14 Attach 56 | . 2 . 3 . . . 1 2 2 3 5 1 . 3 . 2 4 . 16 3 1 8 Detach 10 | . . . 1 . . . . . . . . . . 1 1 1 . . 4 1 1 . Swap 139 | 2 6 9 8 4 . 2 4 10 5 22 5 10 12 8 4 6 6 . 12 2 . 2 Drop 93 | 1 4 4 11 2 . 2 9 8 8 8 5 1 13 4 2 2 1 . 4 1 . 3 Fire 560 | 11 33 13 31 7 . 7 9 53 3 69 6 31 22 39 17 26 35 . 86 12 . 50 Melee 179 | . . . . . . . . . . . . . . . . . . . 129 13 5 32 Ram 6 | . . . 1 . . . . . . . . . . 1 . . . . . . . 4 Kick . | . . . . . . . . . . . . . . . . . . . . . . . Crush 2 | . . . . . . . . . . . . . . . . . . . 1 . . 1 Escape Stasis 60 | . . . . . . . . . . 16 . . 8 . . . . . . 24 . 12 Rewire 39 | . . . . . . . . . . . . 30 1 . . 5 . . 3 . . . Trap . | . . . . . . . . . . . . . . . . . . . . . . . Miscellaneous . | . . . . . . . . . . . . . . . . . . . . . . . Route ------- -11/Scrapyard -10/Materials (discovered 3 exits: *Mat / [*Min x2]) -10/Mines -9/Materials -9/Mines (discovered 2 exits: *Mat / *Exi) -9/Exiles -8/Mines -8/Materials -8/Garrison (discovered 2 exits: *Fac / [*Mat]) -7/Factory (discovered 2 exits: [*Low] / Gar) -7/Garrison (discovered 2 exits: *Fac x2) -7/Factory -7/Garrison -7/Factory -7/Storage -7/Recycling -5/Factory -5/Upper Caves -5/Upper Caves (discovered 2 exits: *Fac / War) -4/Factory -4/Garrison -3/Research -2/Research History --------- Turn | Location | Event 20 | -11/Scrapyard | Discovered new exit (range 14) 120 | -11/Scrapyard | Entered Materials 269 | -10/Materials | Discovered new exit (range 16) 304 | -10/Materials | Build established: Mutant 778 | -10/Materials | Discovered new exit (range 13) 792 | -10/Materials | Discovered new exit (range 15) 792 | -10/Materials | Entered Mines 987 | -10/Mines | Found a damaged Exp. Sensor Array with a note attached 1461 | -10/Mines | Discovered new exit (range 14) 1486 | -10/Mines | Entered Materials 1486 | -9/Materials | Evolved 2 slots: Utility x2 1951 | -9/Materials | Discovered new exit (range 5) 1957 | -9/Materials | Entered Mines 1970 | -9/Mines | Build established: Scavenger-Mutant 1973 | -9/Mines | Met a Derelict who couldn't figure out how to use a Trap Extractor 1990 | -9/Mines | Assembled infested the area 2047 | -9/Mines | Lost 3 allies 2139 | -9/Mines | Met 8R-AWN 2168 | -9/Mines | Discovered new exit (range 7) 2206 | -9/Mines | Discovered new exit (range 5) 2238 | -9/Mines | Assisted by bots powering up and referring to "LRC-V3" 2239 | -9/Mines | Learned 2 Materials zone layouts 2282 | -9/Mines | Entered Exiles 2282 | -9/Exiles | Accompanied by 3 allies 2314 | -9/Exiles | Welcomed by 8R-AWN 2331 | -9/Exiles | Met EX-HEX 2371 | -9/Exiles | Met EX-BIN 2386 | -9/Exiles | Aligned with FarCom system 2387 | -9/Exiles | Given EX-Vault access code 2419 | -9/Exiles | Opened EX-Vault 2451 | -9/Exiles | Warned to stay clear of 0b10 Research branches 2516 | -9/Exiles | Met EX-DEC 2522 | -9/Exiles | Learned location of Zion (-7) 2560 | -9/Exiles | Discovered new exit (range 14) 2576 | -9/Exiles | Entered Mines 2576 | -8/Mines | Accompanied by 3 allies 2754 | -8/Mines | Discovered new exit (range 16) 2776 | -8/Mines | Entered Materials 2776 | -8/Materials | Accompanied by 3 allies 2776 | -8/Materials | Evolved 2 slots: Utility x1, Weapon x1 3085 | -8/Materials | Build established: Scavenger-Skirmisher 3282 | -8/Materials | Identified exit to Garrison 3293 | -8/Materials | Entered Garrison 3293 | -8/Garrison | Accompanied by 2 allies 3349 | -8/Garrison | Installed Relay Interface Framework 3383 | -8/Garrison | Triggered checkpoint 3445 | -8/Garrison | Triggered checkpoint 3610 | -8/Garrison | Discovered new exit (range 6) 3953 | -8/Garrison | Destroyed 7 combat bots 3967 | -8/Garrison | Triggered checkpoint 4004 | -8/Garrison | Triggered checkpoint 4010 | -8/Garrison | Triggered checkpoint 4272 | -8/Garrison | Discovered new exit (range 12) 4292 | -8/Garrison | Expanded RIF knowledge: Alert ID Control 4515 | -8/Garrison | Spotted B-75 Beast 4601 | -8/Garrison | Entered Factory 4601 | -7/Factory | Evolved 2 slots: Utility x2 4971 | -7/Factory | Discovered new exit (range 6) 5090 | -7/Factory | Build established: Scavenger-Gunner 5121 | -7/Factory | Identified exit to Garrison 5121 | -7/Factory | Entered Garrison 5130 | -7/Garrison | Triggered checkpoint 5404 | -7/Garrison | Build established: Scavenger-Tank 5589 | -7/Garrison | Triggered checkpoint 5594 | -7/Garrison | Garrison Relay disabled 5776 | -7/Garrison | Triggered checkpoint 5983 | -7/Garrison | Triggered checkpoint 6064 | -7/Garrison | Build established: Bothacker-Gunner 6082 | -7/Garrison | Discovered new exit (range 9) 6248 | -7/Garrison | Triggered checkpoint 6361 | -7/Garrison | Discovered new exit (range 11) 6377 | -7/Garrison | Expanded RIF knowledge: Robot Detection 6399 | -7/Garrison | Entered Factory 6422 | -7/Factory | Found Powered Armor 6689 | -7/Factory | Core integrity fell below 50% 6743 | -7/Factory | Lost 5 parts (1p2u2w) 6844 | -7/Factory | Identified exit to Garrison 6844 | -7/Factory | Entered Garrison 6960 | -7/Garrison | Triggered checkpoint 7032 | -7/Garrison | Build established: Bothacker-Tank 7184 | -7/Garrison | Expanded RIF knowledge: Autoassimilate 7256 | -7/Garrison | Garrison Relay disabled 7408 | -7/Garrison | Triggered checkpoint 7464 | -7/Garrison | Discovered new exit (range 6) 7512 | -7/Garrison | Entered Factory 7512 | -7/Factory | Accompanied by 3 allies 8795 | -7/Factory | Discovered new exit (range 16) 8833 | -7/Factory | Entered Storage 8833 | -7/Storage | Accompanied by 4 allies 9524 | -7/Storage | Found Prototype Launcher 9524 | -7/Storage | Identified Rocket Array 9692 | -7/Storage | Core integrity fell below 20% 9696 | -7/Storage | Lost 3 allies 9740 | -7/Storage | Lost 3 parts (3u) 9777 | -7/Storage | Used back door to open Recycling access 9777 | -7/Storage | Discovered new exit (range 5) 9790 | -7/Storage | Entered Recycling 9790 | -7/Recycling | Accompanied by 1 ally 10380 | -7/Recycling | Scanned before Scraplab entrance 10402 | -7/Recycling | Entered Scraplab 10405 | -7/Recycling | Angered Scraplab inhabitants 10435 | -7/Recycling | Found Prototype Device 10435 | -7/Recycling | Identified Scrap Engine 10621 | -7/Recycling | Discovered new exit (range 15) 10744 | -7/Recycling | Build established: Bothacker-Skirmisher 11052 | -7/Recycling | Entered Factory 11052 | -5/Factory | Evolved 4 slots: Power x2, Propulsion x1, Utility x1 11156 | -5/Factory | Repaired Arm. Huge Wheel 11357 | -5/Factory | Discovered new exit (range 15) 11587 | -5/Factory | Entered Upper Caves 11801 | -5/Upper Caves | Spotted B-75 Beast 11843 | -5/Upper Caves | Destroyed B-75 Beast 11867 | -5/Upper Caves | Lost 5 parts (1p4u) 12215 | -5/Upper Caves | Discovered new exit (range 5) 12312 | -5/Upper Caves | Entered another Upper Caves area 12313 | -5/Upper Caves | Identified exit to Warlord 12331 | -5/Upper Caves | Spotted B-75 Beast 12332 | -5/Upper Caves | Build established: Tank 12380 | -5/Upper Caves | Discovered new exit (range 5) 12385 | -5/Upper Caves | Entered Factory 12385 | -4/Factory | Evolved 2 slots: Propulsion x1, Utility x1 12611 | -4/Factory | Garrison activated, responded to threat 12650 | -4/Factory | Lost 20 parts (3p4n6u7w) 13462 | -4/Factory | Build established: Scavenger-Gladiator 13846 | -4/Factory | Build established: Gladiator 14086 | -4/Factory | System corruption reached 10% 14127 | -4/Factory | Lost 4 parts (1n2u1w) 14622 | -4/Factory | Lost 3 parts (1n2u) 14915 | -4/Factory | Build established: Scavenger-Gladiator 15432 | -4/Factory | Build established: Gladiator 15721 | -4/Factory | Core integrity fell below 50% 15796 | -4/Factory | Lost 6 parts (1p3n1u1w) 16180 | -4/Factory | Build established: Scavenger-Gladiator 16638 | -4/Factory | Lost 4 parts (2p1n1w) 17021 | -4/Factory | Identified exit to Garrison 17021 | -4/Factory | Entered Garrison 17189 | -4/Garrison | Garrison Relay disabled 17415 | -4/Garrison | Triggered checkpoint 17415 | -4/Garrison | Triggered checkpoint 17437 | -4/Garrison | Core integrity fell below 20% 17473 | -4/Garrison | Lost 5 parts (1p2n1u1w) 17573 | -4/Garrison | Discovered new exit (range 11) 17590 | -4/Garrison | Entered Research 17590 | -3/Research | Evolved 2 slots: Propulsion x2 17734 | -3/Research | Build established: Bothacker-Gladiator 17826 | -3/Research | Discovered new exit (range 10) 17865 | -3/Research | Entered another Research area 17865 | -2/Research | Evolved 2 slots: Utility x2 18132 | -2/Research | Lost 4 parts (1n2u1w) 18340 | -2/Research | Lost 7 parts (3p2n1u1w) 18606 | -2/Research | Build established: Bothacker-Mutant 18787 | -2/Research | System corruption reached 10% 18844 | -2/Research | Core integrity fell below 50% 18918 | -2/Research | Core integrity fell below 20% 18932 | -2/Research | Destroyed by G-73 Enforcer with Phase Gun Last Messages --------------- 18899_ Field strength at 70. 18901_ Field strength at 58. 18903_ Jacked S-43 Plague... >>overwrite_iff Rewriting IFF filter. 18905_ Field strength at 47. 18906_ Field strength at 41. 18907_ Field strength at 35. 18908_ Field strength at 29. 18909_ Field strength at 23. 18910_ Field strength at 17. 18911_ Field strength at 11. 18912_ Field strength at 5. 18913_ Stasis field depleted. 18918_ Relay Coupler [Swarmer] destroyed. 18920_ Remote Datajack destroyed. 18920_ Exp. Energy Well destroyed. 18922_ Detecting nearby Garrison Access. 18925_ Connecting with Scanalyzer... 18930_ System corrupted: Matter fused (-9). Map ----- +----------------------------------------------------+ | ?????????????????????????????????????????????????? | | ?????????????????????????????????????????????????? | | ?????????????????????????????????????????????????? | | ?????????????????????????????????????????????????? | | ?????????????????????????????????????????????????? | | ?????????????????????????????????????????????????? | | ?????????????????????????????????????????????????? | | ?????????????????????????????????????????????????? | | ?????????????????????????????????????????????????? | | ?????????????????????????????????????????????????? | | ?????????????????????????????????????????????????? | | ?????????????????????????????????????????????????? | | ?????????????????????????????????????????????????? | | ????????????????????w????????????????????????????? | | ?????????????????????????????????????????????????? | | ????????################?????????????????????????? | | ????????# """S""" #?????????????????????????? | | ????????# """ """ #?????????????????????????? | | ????????# #?????????????????????????? | | ????????# #?????????????????????????? | | ????????# #???????????#?????????????? | | ????????# #??###???? #?????????????? | | ????????####+######+######T ### #?????????????? | | ?????????# g g #?????????????? | | ?????????# lgg #?????????????? | | ?????????# A @ k #?????????????? | | ??? R kk #?????????????? | | ?????###### ##### ###############?????????????? | | ???????####/##??# gg#???????????????????????????? | | ???????# ?# gg#???????????????????????????? | | ???????# ?# #???????????????????????????? | | ???????# #^ #???????????????????????????? | | ???????#""" # #???????????????????????????? | | ???????#""" | / #???????????????????????????? | | ???????#""" # #???????????????????????????? | | ???????# # w#???????????????????????????? | | ???????# ?# #####+#########?????????????? | | ???????# ?# #?????????????? | | ???????#######??# #?????????????? | | ????????????????# #?????????????? | | ????????????????# = ##????????????? | | ????????????????######## % #????????????? | | ????????????????????#""" !" ##????????????? | | ????????????????????#"Y ########??????? | | ????????????????????#""" #??????? | | ????????????????????#### % #??????? | | ???????????????????????# % [ * ##?##### | | ???????????????????????# * %[ # | | ???????????????????????## # #### # | | ????????????????????????## #?# #? "" | +----------------------------------------------------+ Best States ------------- Heat Dissipation 112 Energy Generation 61 Energy Capacity 790 Matter Stores 300 Matter Capacity 300 Sight Range 16 Terrain Scan Range 20 Terrain Scan Density 85 Jamming Range 16 Power Amplification 30 Armor Coverage 775 Resistance: TH 10 Resistance: EM 15 Utility Shielding 66 Weapon Cycling 15 Evasion (%) 62 Targeting Accuracy 8 Melee Accuracy 6 Target Analysis 6 Recoil Reduction 3 Particle Charging 15 Offensive Hacking 12 Relay Coupler Types 2 Relay Coupler Value 43 Authchip Count 2 Item Schematics ----------------- Arm. Wheel | -8/Materials | Hacked Robot Schematics ------------------ None Fabricated ------------ Nothing Repaired ---------- Arm. Huge Wheel | 33% | -5/Factory Studied --------- Wheel | -8/Materials | Hacked Ion Engine | -8/Materials | Hacked Alien Tech Used ----------------- None Achievements -------------- Not So Scrappy Scrappetite Challenges ------------ None Game ------ Seed MachineGammaDetector Manual? 0 Play Time 02:41:13 Cumulative 104.0 hours Start 2025.12.04 @ 10:07:09 End 2025.12.04 @ 16:06:14 Sessions 5 Manual Loads 0 Difficulty Rogue Special Mode None Game No. 105 Rogue 105 Adventurer 0 Explorer 0 Win Type - Total 0 Types 0/0/0/0/0/0/0/0/0/0 Lore% 62 Gallery% 47 Achievement% 39 Wizard Run 0 Options --------- Layout 0 ASCII 0 Keyboard 1 Movement Vi Keybinds 0 Fullscreen 2 Font 18/SmallcapsGlow Map View 76x50 Zoom Use 0% Tactical HUD 1 Map Filters NONE Filters NONE Steam 1 RUN: 86aa9bf6-277e-4d16-8c6b-f5cf5539ae44